bitfinex/quotes_SOLUSD_20250421
["timestamp","ask_amount","ask_price","bid_price","bid_amount"]
[1745256444774,20.0,135.29,135.24,26.0]
[1745256444988,22.58665286,135.31,135.24,26.0]
[1745256445395,20.0,135.29,135.24,26.0]
[1745256445580,20.0,135.29,135.23,26.0]
[1745256445779,7.5931,135.28,135.23,26.0]
[1745256445963,7.5931,135.28,135.21,26.0]
[1745256446677,0.73926221,135.27,135.21,26.0]
[1745256447590,20.73926221,135.27,135.21,26.0]
[1745256447764,20.73926221,135.27,135.22,26.0]
[1745256447968,20.0,135.25,135.17,7.39809129]
[1745256448188,20.0,135.23,135.16,19.12]
[1745256448503,6.0648,135.22,135.15,26.04847267]
[1745256448801,6.80434125,135.22,135.18,26.0]
[1745256448960,6.0648,135.22,135.18,26.0]
[1745256449169,6.0648,135.22,135.15,26.04847267]
[1745256449386,20.0,135.25,135.19,26.0]
[1745256449689,6.0648,135.25,135.19,26.0]
[1745256450495,6.80417639,135.25,135.19,26.0]
[1745256450693,0.73948088,135.23,135.13,7.40028121]
[1745256450858,20.0,135.21,135.13,7.40028121]
[1745256451066,1.5283,135.22,135.14,26.0]
[1745256451271,1.5283,135.22,135.14,18.64964886]
[1745256451767,0.73959026,135.21,135.15,7.39918608]
[1745256453108,2.26785765,135.22,135.15,7.39918608]
[1745256453289,1.5283,135.22,135.17,26.0]
[1745256453877,0.73946055,135.24,135.17,26.0]
[1745256455209,0.73946055,135.24,135.18,7.39754401]
[1745256455504,0.73933302,135.26,135.19,18.79181043]
[1745256455894,0.73933302,135.26,135.18,7.39754401]
[1745256456512,7.40133302,135.26,135.18,7.39754401]
[1745256456699,20.0,135.25,135.18,7.39754401]
[1745256457006,21.6456,135.25,135.18,7.39754401]
[1745256457215,0.7394262,135.24,135.17,33.39801083]
[1745256457406,20.0,135.23,135.17,26.0]
[1745256457591,101.8,135.23,135.15,7.39909429]
[1745256457788,101.8,135.23,135.15,33.39909429]
[1745256458788,0.73953557,135.22,135.15,33.39909429]
[1745256459624,20.0,135.21,135.15,26.0]
[1745256459795,20.0,135.21,135.15,33.39880526]
[1745256460605,102.5395016,135.23,135.18,26.0]
[1745256460821,1.6456,135.25,135.19,7.39699681]
[1745256461719,2.38497807,135.25,135.19,7.39699681]
[1745256462700,20.0,135.22,135.17,26.0]
[1745256462896,20.73958108,135.22,135.16,33.39845186]
[1745256463098,0.73950304,135.23,135.16,33.39845186]
[1745256463324,101.8,135.24,135.16,33.39845186]
[1745256463620,0.73944911,135.24,135.17,18.79181043]
[1745256463792,1.6456,135.25,135.17,18.79181043]
[1745256464192,20.0,135.24,135.16,33.39845186]
[1745256464806,20.0,135.22,135.16,26.0]
[1745256465891,20.0,135.2,135.14,26.0]
[1745256467014,20.73966617,135.2,135.15,26.0]
[1745256468217,0.73966617,135.2,135.15,26.0]
[1745256469418,108.462,135.22,135.15,26.0]
[1745256469419,0.73959026,135.21,135.15,26.0]
[1745256470311,7.40155688,135.22,135.16,18.64964886]
[1745256470905,0.73941687,135.25,135.17,18.64964886]
[1745256471105,20.0,135.25,135.17,18.64964886]
[1745256471502,0.7394262,135.24,135.17,7.39783308]
[1745256472714,0.7394262,135.24,135.17,26.04748194]
[1745256472919,0.7394262,135.24,135.17,7.39783308]
[1745256473217,0.7394262,135.24,135.17,26.04748194]
[1745256473619,20.0,135.25,135.19,7.39699681]
[1745256473620,0.73938901,135.25,135.19,7.39699681]
[1745256473915,0.73933989,135.26,135.19,7.39699681]
[1745256474526,0.03,135.27,135.2,18.79181043]
[1745256475113,0.03,135.27,135.22,18.79181043]
[1745256475713,0.03,135.27,135.22,26.1868114]
[1745256476531,0.03,135.27,135.25,26.0]
[1745256477706,0.03,135.27,135.25,33.39337556]
[1745256479708,0.03,135.27,135.26,18.79181043]
[1745256479914,0.03,135.27,135.26,26.18497914]
[1745256481823,0.03,135.27,135.26,7.39316871]
[1745256482024,0.03,135.27,135.25,33.3935088]
[1745256482234,0.03,135.27,135.25,26.0]
[1745256482734,0.03,135.27,135.23,7.39461844]
[1745256482908,0.03,135.27,135.22,7.395225]
[1745256483109,0.03,135.27,135.23,26.0]
[1745256483928,0.03,135.27,135.23,33.39474455]
[1745256484229,0.03,135.27,135.23,7.39474455]
[1745256484433,0.03,135.27,135.23,33.39474455]
[1745256485010,0.03,135.27,135.24,30.0]
[1745256485923,0.03,135.27,135.23,33.39475239]
[1745256487510,0.03,135.27,135.24,18.79181043]
[1745256487919,0.03,135.27,135.23,33.39475239]
[1745256489245,0.03,135.27,135.25,7.39371534]
[1745256489613,0.03,135.27,135.24,7.39414041]
[1745256490340,0.03,135.27,135.23,33.39458738]
[1745256490638,0.03,135.27,135.23,26.0]
[1745256490830,0.03,135.27,135.21,19.08]
[1745256491034,0.03,135.27,135.22,30.0]
[1745256491362,0.03,135.27,135.18,7.39724001]
[1745256491363,26.5857,135.26,135.18,7.39724001]
[1745256491534,26.5857,135.26,135.18,33.39724001]
[1745256491724,26.5857,135.26,135.18,7.39724001]
[1745256491918,26.5857,135.26,135.19,30.0]
[1745256492119,108.3857,135.26,135.19,30.0]
[1745256493339,0.73937153,135.25,135.19,30.0]
[1745256494353,0.73937153,135.25,135.18,7.39720603]
[1745256496249,2.58780036,135.25,135.17,19.06]
[1745256497653,2.58780036,135.25,135.17,26.45794168]
[1745256499454,89.12504399,135.26,135.2,26.0]
[1745256499656,0.03,135.27,135.21,18.79181043]
[1745256500043,0.76926816,135.27,135.21,18.79181043]
[1745256501147,0.76926816,135.27,135.2,18.79181043]
[1745256501333,0.76926816,135.27,135.2,44.79181043]
[1745256501663,2.6174237,135.27,135.2,26.0]
[1745256501873,21.5926,135.26,135.16,7.39817281]
[1745256502072,20.0,135.24,135.14,7.3997336]
[1745256502370,20.0,135.22,135.13,19.123]
[1745256502528,20.0,135.2,135.13,19.123]
[1745256502733,20.0,135.2,135.13,0.063]
[1745256503073,20.0,135.22,135.13,37.46317199]
[1745256503630,0.73959026,135.21,135.13,37.46317199]
[1745256503937,0.73959026,135.21,135.14,18.64964886]
[1745256504254,0.73959026,135.21,135.13,7.60533356]
[1745256504752,0.73959026,135.21,135.13,7.46317199]
[1745256505160,20.0,135.2,135.13,0.063]
[1745256505361,1.5926,135.19,135.13,0.063]
[1745256505656,0.7397544,135.18,135.13,0.063]
[1745256507150,0.73970309,135.19,135.13,0.063]
[1745256508072,82.53967063,135.2,135.13,0.063]
[1745256508566,81.8,135.2,135.13,45.60481043]
[1745256508739,82.53965178,135.2,135.13,45.60481043]
[1745256509464,82.53965178,135.2,135.13,26.813]
[1745256509864,82.53965178,135.2,135.14,7.3997336]
[1745256510862,81.8,135.2,135.14,7.3997336]
[1745256512149,0.73960412,135.21,135.14,7.3997336]
[1745256512351,1.5926,135.22,135.14,25.89906762]
[1745256512352,0.73955567,135.22,135.14,25.89906762]
[1745256512658,0.73955567,135.22,135.14,7.3997336]
[1745256512863,20.73955567,135.22,135.14,7.3997336]
[1745256513058,22.58839459,135.22,135.13,34.21308334]
[1745256513250,20.0,135.2,135.13,34.21308334]
[1745256513562,20.0,135.2,135.13,26.813]
[1745256513770,20.0,135.18,135.13,26.813]
[1745256514277,28.1828,135.18,135.13,26.813]
[1745256515374,0.73980912,135.17,135.13,0.063]
[1745256517371,0.71761912,135.17,135.13,0.063]
[1745256521361,2.56714194,135.17,135.13,0.063]
[1745256521569,20.0,135.16,135.13,0.063]
[1745256522167,2.56714194,135.17,135.13,0.063]
[1745256524368,0.71761912,135.17,135.13,0.063]
[1745256526395,20.73959675,135.21,135.13,26.063]
[1745256527568,20.73959675,135.21,135.13,0.063]
[1745256527768,20.73959675,135.21,135.13,18.85481043]
[1745256527968,20.73959675,135.21,135.13,0.063]
[1745256528380,20.0,135.19,135.13,0.063]
[1745256530892,0.7397544,135.18,135.13,0.063]
[1745256531771,20.0,135.19,135.13,0.063]
[1745256531964,20.73972464,135.19,135.13,0.063]
[1745256532365,20.0,135.21,135.13,18.85481043]
[1745256533095,20.73960096,135.21,135.14,33.3997336]
[1745256533302,20.73960096,135.21,135.14,7.3997336]
[1745256533591,0.7394262,135.24,135.15,20.40571043]
[1745256533790,102.53939332,135.25,135.18,26.0]
[1745256534589,8.48014139,135.26,135.19,18.79181043]
[1745256534768,0.73934139,135.26,135.19,18.79181043]
[1745256534971,0.73934139,135.26,135.2,7.3964497]
[1745256536303,0.73934139,135.26,135.19,7.39699681]
[1745256537694,20.0,135.25,135.18,33.39745339]
[1745256537881,101.8,135.25,135.18,33.39745339]
[1745256538296,0.7394262,135.24,135.18,33.39745339]
[1745256539898,0.7394262,135.24,135.18,26.0]
[1745256540097,20.0,135.23,135.16,33.39828185]
[1745256540777,27.7408,135.23,135.16,26.0]
[1745256541177,27.7408,135.23,135.16,33.39857732]
[1745256541800,0.73953557,135.22,135.16,33.39857732]
[1745256542003,20.0,135.21,135.16,26.0]
[1745256544104,0.73964497,135.2,135.16,26.0]
[1745256544312,20.73960976,135.21,135.16,33.39852142]
[1745256545187,20.73960976,135.21,135.16,26.0]
[1745256545598,20.73960976,135.21,135.16,33.39853877]
[1745256546711,0.73960976,135.21,135.16,33.39853877]
[1745256546884,0.73955887,135.22,135.16,33.39853877]
[1745256549808,0.73955887,135.22,135.16,26.0]
[1745256550017,2.58839779,135.22,135.16,26.0]
[1745256550808,2.58839779,135.22,135.15,1.6139]
[1745256551020,2.58839779,135.22,135.15,9.01299828]
[1745256554492,0.73955887,135.22,135.16,18.79181043]
[1745256554701,0.7394262,135.24,135.18,18.79181043]
[1745256555716,0.7394262,135.24,135.19,7.39699681]
[1745256557328,0.7394262,135.24,135.18,26.18909078]
[1745256560332,0.7394262,135.24,135.17,33.39800547]
[1745256560631,2.58799171,135.24,135.17,33.39800547]
[1745256561000,2.58799171,135.24,135.17,26.0]
[1745256561198,20.0,135.23,135.17,26.0]
[1745256561405,20.0,135.23,135.16,19.0]
[1745256561702,103.3356,135.23,135.17,30.0]
[1745256562319,20.0,135.21,135.17,30.0]
[1745256562513,20.0,135.21,135.15,27.6139]
[1745256563928,20.0,135.21,135.15,35.01305224]
[1745256564427,0.73964497,135.2,135.15,35.01305224]
[1745256565420,2.58837449,135.22,135.15,35.01305224]
[1745256571628,2.58837449,135.22,135.15,9.01305224]
[1745256572017,2.58837449,135.22,135.15,1.6139]
[1745256573232,2.58837449,135.22,135.15,9.01296593]
[1745256573439,20.0,135.2,135.13,0.063]
[1745256573635,20.0,135.18,135.14,30.0]
[1745256573936,0.73980912,135.17,135.14,30.0]
[1745256574633,0.73980912,135.17,135.13,30.063]
[1745256575215,0.73980912,135.17,135.13,0.063]
[1745256576217,20.0,135.15,135.13,0.063]
[1745256577843,0.73997336,135.14,135.13,0.063]
[1745256579445,0.73986386,135.16,135.13,0.063]
[1745256579815,0.7397544,135.18,135.13,0.063]
[1745256581135,20.73972046,135.19,135.13,0.063]
[1745256583837,0.73972046,135.19,135.14,7.3997336]
[1745256584741,82.53965626,135.2,135.14,7.3997336]
[1745256585125,101.8,135.23,135.15,44.79181043]
[1745256585343,0.73945271,135.24,135.18,26.0]
[1745256585751,0.73932154,135.26,135.19,7.39699681]
[1745256585927,0.73932154,135.26,135.2,1.6437]
[1745256586822,2.58761371,135.26,135.18,52.18914759]
[1745256587848,20.0,135.25,135.18,26.0]
[1745256588152,0.73932154,135.26,135.18,33.39745853]
[1745256589181,0.73932154,135.26,135.19,18.79181043]
[1745256589335,0.73932154,135.26,135.19,26.18866409]
[1745256589534,0.73932154,135.26,135.19,18.79181043]
[1745256590259,2.58761371,135.26,135.17,50.4094]
[1745256590562,2.58761371,135.26,135.18,56.14216157]
[1745256591071,20.0,135.25,135.18,56.0]
[1745256591364,2.58799171,135.24,135.18,56.0]
[1745256591657,20.0,135.23,135.18,30.0]
[1745256591977,20.0,135.23,135.16,46.6037]
[1745256592270,101.8,135.23,135.17,30.0]
[1745256593164,101.8,135.23,135.16,1.6437]
[1745256593379,20.0,135.2,135.15,26.0]
[1745256593670,20.0,135.2,135.13,6.5322]
[1745256593841,20.0,135.2,135.14,30.0]
[1745256594640,20.0,135.2,135.13,39.93245648]
[1745256595044,20.0,135.2,135.13,32.58210534]
[1745256595456,81.8,135.21,135.14,18.79181043]
[1745256596489,0.73966861,135.2,135.15,7.39918608]
[1745256597553,1.84883892,135.22,135.15,7.39918608]
[1745256597554,2.58837449,135.22,135.15,7.39918608]
[1745256598575,2.58837449,135.22,135.14,26.19127647]
[1745256599179,20.0,135.21,135.13,32.5322]
[1745256599374,20.0,135.21,135.14,26.72]
[1745256599672,0.73964497,135.2,135.14,26.72]
[1745256600453,20.0,135.19,135.13,26.063]
[1745256600868,21.5158,135.19,135.13,0.063]
[1745256601076,20.0,135.15,135.13,26.783]
[1745256601264,6.5708,135.14,135.13,26.783]
[1745256601451,88.3708,135.14,135.13,26.783]
[1745256601658,20.0,135.12,135.1,0.063]
[1745256603881,18.64964886,135.11,135.1,0.063]
[1745256604307,20.0,135.12,135.1,0.063]
[1745256605565,0.74013766,135.11,135.1,0.063]
[1745256607995,20.0,135.1,135.09,0.063]
[1745256608381,38.64964886,135.1,135.09,1e-08]
[1745256608582,64.64964886,135.1,135.09,1e-08]
[1745256609786,65.38984131,135.1,135.09,1e-08]
[1745256612387,46.0,135.08,135.05,0.063]
[1745256612566,20.0,135.06,135.05,0.063]
[1745256612884,101.8,135.06,135.04,0.063]
[1745256613882,0.74046649,135.05,135.04,0.063]
[1745256618596,19.39011535,135.05,135.04,1e-08]
[1745256618965,101.19011535,135.05,135.04,1e-08]
[1745256621592,120.25227692,135.05,135.04,1e-08]
[1745256623778,38.45227692,135.05,135.04,1e-08]
[1745256623995,0.74046649,135.05,135.04,1e-08]
[1745256624799,19.39011535,135.05,135.04,1e-08]
[1745256624984,45.39011535,135.05,135.04,1e-08]
[1745256626196,45.53227692,135.05,135.04,1e-08]
[1745256627395,45.39011535,135.05,135.04,1e-08]
[1745256628096,45.53227692,135.05,135.04,1e-08]
[1745256628595,45.53227692,135.05,135.02,1e-08]
[1745256628596,38.64964886,135.03,135.02,1e-08]
[1745256630278,18.64964886,135.02,135.01,1e-08]
[1745256630785,20.74057616,135.03,135.01,1e-08]
[1745256631868,18.64964886,135.02,135.01,1e-08]
[1745256632395,19.39027987,135.02,135.01,1e-08]
[1745256632598,45.53244144,135.02,135.01,1e-08]
[1745256632968,45.39027987,135.02,135.01,1e-08]
[1745256633280,45.53244144,135.02,135.01,1e-08]
[1745256633780,26.74063101,135.02,135.01,1e-08]
[1745256636898,0.74063101,135.02,135.01,1e-08]
[1745256639987,0.74050634,135.05,135.01,1e-08]
[1745256640204,20.0,135.08,135.01,1e-08]
[1745256640421,0.74035685,135.07,135.02,26.0]
[1745256641218,81.8,135.09,135.02,26.0]
[1745256641417,84.39089028,135.09,135.02,26.0]
[1745256642107,82.54027218,135.09,135.03,7.40576168]
[1745256642721,0.03,135.11,135.04,7.7613]
[1745256643122,0.03,135.11,135.07,26.0]
[1745256643429,0.03,135.11,135.08,26.0]
[1745256643726,0.03,135.11,135.09,7.7613]
[1745256644097,0.03,135.11,135.05,133.01359497]
[1745256644300,0.03,135.11,135.06,1.6241]
[1745256644825,20.0,135.1,135.06,1.6241]
[1745256645004,0.03,135.11,135.06,1.6241]
[1745256646099,0.03,135.11,135.06,9.02809394]
[1745256646298,0.03,135.11,135.06,1.6241]
[1745256646728,20.0,135.1,135.06,1.6241]
[1745256648735,0.74024724,135.09,135.06,1.6241]
[1745256651236,0.03,135.11,135.06,9.02815837]
[1745256651716,0.77014796,135.11,135.06,1.6241]
[1745256652512,0.03,135.11,135.06,9.02807873]
[1745256653115,0.03,135.11,135.07,26.0]
[1745256653840,0.03,135.11,135.06,1.6241]
[1745256654023,0.03,135.11,135.06,35.02810474]
[1745256654734,0.03,135.11,135.08,26.0]
[1745256654944,2.59067357,135.1,135.06,1.6241]
[1745256655123,20.0,135.07,135.03,1.5047]
[1745256655728,20.0,135.07,135.01,1e-08]
[1745256655932,20.0,135.05,135.01,29.85000001]
[1745256656250,20.0,135.05,135.01,1e-08]
[1745256657048,0.74052132,135.04,135.01,1e-08]
[1745256660538,2.59182463,135.04,135.01,1e-08]
[1745256660740,20.0,135.03,135.01,1e-08]
[1745256661421,0.74063101,135.02,135.01,1e-08]
[1745256662250,1.85130331,135.04,135.01,1e-08]
[1745256663346,20.0,135.02,135.01,1e-08]
[1745256663644,38.64964886,135.02,135.01,1e-08]
[1745256664947,20.0,135.02,135.01,1e-08]
[1745256665133,0.74057616,135.03,135.01,1e-08]
[1745256665337,0.74052132,135.04,135.01,1e-08]
[1745256665740,20.0,135.03,135.01,1e-08]
[1745256667852,0.74063101,135.02,135.01,1e-08]
[1745256672647,21.85106288,135.06,135.01,1e-08]
[1745256672830,0.74035685,135.07,135.02,1.5017]
[1745256673138,0.74032479,135.08,135.02,1.5017]
[1745256674327,81.83,135.11,135.03,7.40576168]
[1745256674533,0.74021442,135.1,135.04,18.79181043]
[1745256675658,0.77013766,135.11,135.05,7.40466493]
[1745256676751,0.77013766,135.11,135.06,6.5706]
[1745256676953,0.03,135.11,135.08,1.5017]
[1745256677463,0.03,135.11,135.08,27.5017]
[1745256677961,0.03,135.11,135.08,34.90451139]
[1745256678342,0.03,135.11,135.08,27.5017]
[1745256679368,0.03,135.11,135.06,6.5706]
[1745256680056,0.03,135.11,135.06,13.97469059]
[1745256681475,0.03,135.11,135.09,26.0]
[1745256681641,0.03,135.11,135.1,18.79181043]
[1745256681841,0.03,135.11,135.1,20.36471043]
[1745256682659,0.03,135.14,135.13,26.0]
[1745256683042,0.03,135.14,135.13,44.79181043]
[1745256683354,0.03,135.16,135.13,44.79181043]
[1745256683355,0.03,135.16,135.14,18.64964886]
[1745256683559,0.03,135.16,135.15,7.39918608]
[1745256683742,0.03,135.18,135.17,44.79181043]
[1745256684661,0.03,135.18,135.17,26.0]
[1745256684870,0.03,135.18,135.14,33.39957057]
[1745256685160,0.03,135.18,135.14,26.0]
[1745256685368,0.03,135.18,135.12,33.8196]
[1745256685653,0.03,135.18,135.12,7.8196]
[1745256685855,0.03,135.18,135.12,1.5729]
[1745256686052,0.03,135.18,135.1,26.05135746]
[1745256686253,0.03,135.18,135.12,18.18]
[1745256687361,0.03,135.18,135.13,18.64964886]
[1745256687551,0.03,135.18,135.13,26.0496873]
[1745256688040,0.03,135.18,135.13,52.0496873]
[1745256688241,0.03,135.18,135.14,0.14216157]
[1745256688660,0.03,135.18,135.13,44.64964886]
[1745256688869,0.03,135.18,135.13,52.04976585]
[1745256690766,0.03,135.18,135.17,18.79181043]
[1745256690972,0.03,135.18,135.17,44.79181043]
[1745256691351,0.03,135.18,135.17,89.18181043]
[1745256691761,0.03,135.18,135.17,63.18181043]
[1745256692770,0.03,135.19,135.18,0.14216157]
[1745256693459,0.03,135.19,135.17,107.84774015]
[1745256693969,0.03,135.19,135.18,0.14216157]
[1745256694876,0.03,135.22,135.21,44.79181043]
[1745256695878,0.03,135.22,135.21,89.18181043]
[1745256696376,0.03,135.22,135.21,172.55471043]
[1745256696873,0.03,135.22,135.21,179.95061309]
[1745256697259,0.03,135.24,135.21,179.95061309]
[1745256697260,0.03,135.24,135.21,198.44036976]
[1745256697553,0.03,135.24,135.23,44.79181043]
[1745256698681,0.03,135.24,135.23,52.18661927]
[1745256701879,0.03,135.24,135.23,107.98661927]
[1745256702989,0.03,135.25,135.23,152.37661927]
[1745256703168,0.03,135.27,135.26,44.79181043]
[1745256703983,0.03,135.27,135.26,52.18497914]
[1745256704484,0.03,135.27,135.26,26.0]
[1745256704663,0.03,135.27,135.24,7.39426205]
[1745256704863,0.03,135.27,135.26,26.0]
[1745256705276,0.03,135.27,135.24,33.39426205]
[1745256705473,0.03,135.27,135.24,7.39426205]
[1745256705781,0.03,135.27,135.23,115.19458933]
[1745256706082,0.03,135.27,135.23,33.39458933]
[1745256707288,0.03,135.27,135.24,18.79181043]
[1745256707587,0.03,135.27,135.26,44.79181043]
[1745256707780,0.03,135.27,135.26,89.18181043]
[1745256708156,0.03,135.27,135.26,95.65821043]
[1745256708889,1e-08,135.27,135.26,190.820307]
[1745256709105,0.03,135.3,135.29,89.03964886]
[1745256709386,0.03,135.3,135.29,89.18181043]
[1745256709557,1e-08,135.3,135.29,89.18181043]
[1745256710404,1e-08,135.31,135.3,63.18181043]
[1745256710863,1e-08,135.31,135.3,70.57279343]
[1745256711633,1e-08,135.31,135.3,52.18279343]
[1745256714265,1e-08,135.31,135.3,96.57279343]
[1745256715599,1.28060551,135.32,135.3,70.57279343]
[1745256715809,1.28060551,135.32,135.31,107.92181043]
[1745256717071,1.28060551,135.32,135.31,63.38964886]
[1745256717509,1.28060551,135.32,135.31,63.53181043]
[1745256717707,1.28060551,135.32,135.31,70.78008563]
[1745256718007,1.28060551,135.32,135.31,70.9222472]
[1745256719503,1.28060551,135.32,135.31,52.1822472]
[1745256719878,1.28060551,135.32,135.31,96.5722472]
[1745256720305,1e-08,135.32,135.31,152.3722472]
[1745256720517,1e-08,135.33,135.32,63.18181043]
[1745256720798,1e-08,135.33,135.32,144.98181043]
[1745256721635,1e-08,135.33,135.32,160.20570105]
[1745256721798,1e-08,135.33,135.32,161.20570105]
[1745256722103,0.03,135.37,135.36,89.03964886]
[1745256722299,0.03,135.37,135.36,189.66181042]
[1745256722704,0.03,135.41,135.4,26.0]
[1745256723511,0.03,135.41,135.38,26.0]
[1745256723915,0.03,135.41,135.38,33.38657961]
[1745256724216,0.03,135.41,135.39,18.79181043]
[1745256725008,0.03,135.41,135.38,26.0]
[1745256725493,0.03,135.41,135.36,100.47999999]
[1745256725686,6.3915,135.4,135.33,81.79999999]
[1745256725888,1.5479,135.39,135.32,18.68]
[1745256726795,1.5479,135.39,135.33,13.11]
[1745256726996,1.5479,135.39,135.3,18.64964886]
[1745256727186,20.0,135.36,135.28,18.68]
[1745256727496,20.0,135.36,135.29,26.0]
[1745256727686,2.58588842,135.35,135.28,18.68]
[1745256727890,2.58588842,135.35,135.29,13.11]
[1745256728200,2.58588842,135.35,135.28,52.0720741]
[1745256728517,1.5695,135.33,135.26,89.19316664]
[1745256728693,20.0,135.29,135.19,7.45971734]
[1745256728884,20.0,135.29,135.2,39.12]
[1745256729083,20.0,135.27,135.2,13.12]
[1745256729698,0.73931687,135.26,135.2,13.12]
[1745256730919,1.84823518,135.27,135.2,13.12]
[1745256731102,1.84823518,135.27,135.19,18.85481043]
[1745256731304,21.84823518,135.27,135.19,0.063]
[1745256731517,47.84823518,135.27,135.19,0.063]
[1745256731699,20.0,135.25,135.19,0.063]
[1745256732315,6.0099,135.26,135.21,26.0]
[1745256732519,0.73920756,135.28,135.21,26.0]
[1745256732817,20.0,135.29,135.21,26.0]
[1745256732818,0.73917081,135.29,135.23,33.39472965]
[1745256733031,8.44491851,135.3,135.23,26.0]
[1745256733334,26.0,135.23,135.19,0.063]
[1745256733930,27.5513,135.23,135.19,0.063]
[1745256734307,1.5513,135.23,135.19,0.063]
[1745256735195,2.2907819,135.23,135.19,0.063]
[1745256737444,4.13948411,135.23,135.19,0.063]
[1745256741108,2.2907819,135.23,135.19,0.063]
[1745256741316,0.7394819,135.23,135.19,0.063]
[1745256741511,18.64964886,135.28,135.2,26.0]
[1745256741512,1.6112,135.27,135.2,26.0]
[1745256741731,0.73922977,135.28,135.22,0.14216157]
[1745256742420,0.7390983,135.3,135.22,0.14216157]
[1745256742610,0.7390983,135.3,135.23,7.39480884]
[1745256743514,22.58684405,135.3,135.21,18.64964886]
[1745256743815,22.58684405,135.3,135.21,26.04536153]
[1745256745037,22.58684405,135.3,135.21,7.39571267]
[1745256745250,46.0,135.28,135.19,0.063]
[1745256745736,20.0,135.24,135.19,0.063]
[1745256745944,21.6112,135.24,135.19,0.063]
[1745256747438,0.73948088,135.23,135.19,0.063]
[1745256748144,20.0,135.22,135.19,0.063]
[1745256749051,0.73948088,135.23,135.19,0.063]
[1745256749223,0.7394262,135.24,135.19,0.063]
[1745256750631,2.35048618,135.27,135.21,26.0]
[1745256750834,101.8,135.32,135.22,18.79181043]
[1745256751330,0.73904367,135.31,135.23,7.39480884]
[1745256752023,2.58665286,135.31,135.23,7.39480884]
[1745256752351,2.58665286,135.31,135.21,107.79999999]
[1745256752352,20.0,135.3,135.21,107.79999999]
[1745256752525,46.0,135.3,135.21,107.79999999]
[1745256753529,20.0,135.28,135.21,115.19578498]
[1745256753728,20.0,135.28,135.21,33.39578499]
[1745256754535,0.73926221,135.27,135.21,33.39578499]
[1745256754750,0.73926221,135.27,135.21,26.0]
[1745256754931,0.73926221,135.27,135.19,44.723]
[1745256755826,2.58741775,135.27,135.19,52.11981944]
[1745256761128,2.58741775,135.27,135.2,51.75636484]
[1745256761442,2.58741775,135.27,135.2,7.39636484]
[1745256762151,2.58741775,135.27,135.19,52.11979423]
[1745256762344,35.13721775,135.27,135.19,26.11979423]
[1745256762532,20.0,135.24,135.19,18.723]
[1745256762733,20.0,135.22,135.19,0.063]
[1745256763250,20.0,135.2,135.19,0.063]
[1745256763763,26.5498,135.2,135.19,0.063]
[1745256763939,45.34161043,135.2,135.19,0.063]
[1745256764339,45.34161043,135.2,135.19,1e-08]
[1745256764649,20.0,135.16,135.15,24.99]
[1745256764855,20.0,135.16,135.13,0.063]
[1745256765349,0.7399186,135.15,135.13,0.063]
[1745256767656,0.73980912,135.17,135.13,0.063]
[1745256768923,28.5889794,135.19,135.13,0.063]
[1745256769942,26.73969968,135.19,135.13,0.063]
[1745256770726,28.58894888,135.19,135.13,0.063]
[1745256770931,20.0,135.18,135.13,0.063]
[1745256771433,0.73980912,135.17,135.13,0.063]
[1745256771633,20.0,135.16,135.13,0.063]
[1745256773657,0.7399186,135.15,135.13,0.063]
[1745256774756,20.0,135.14,135.13,0.063]
[1745256775755,20.73997336,135.14,135.13,0.063]
[1745256781133,46.73997336,135.14,135.13,0.063]
[1745256781339,65.53178379,135.14,135.12,0.063]
[1745256782147,38.79181043,135.12,135.11,1e-08]